bitfinex/quotes_ETHUSD_20250314
["timestamp","ask_amount","ask_price","bid_price","bid_amount"]
[1741971457494,0.8025,1941.0,1940.7,5.15277]
[1741971457930,5.95448,1941.0,1940.6,5.15303]
[1741971458101,5.15268,1940.8,1940.4,5.93748]
[1741971458301,5.15236,1940.9,1940.5,10.30634]
[1741971458513,6.263046,1940.9,1940.6,5.15304]
[1741971458827,5.9545,1941.0,1940.7,5.15265]
[1741971459322,11.10666,1941.0,1940.6,5.15294]
[1741971459697,5.15227,1940.9,1940.6,5.15294]
[1741971460218,5.9545,1941.0,1940.6,5.15294]
[1741971460219,5.9545,1941.0,1940.6,10.30581]
[1741971460925,11.10667,1941.0,1940.6,5.15287]
[1741971461229,5.15225,1940.9,1940.6,5.15287]
[1741971461929,5.15227,1940.9,1940.6,5.15281]
[1741971462607,10.50359,1940.8,1940.5,5.15329]
[1741971462809,5.351,1940.8,1940.5,10.30645]
[1741971463020,5.351,1940.8,1940.5,5.15316]
[1741971463725,10.50352,1940.8,1940.4,10.30695]
[1741971463927,10.50358,1940.8,1940.5,5.15329]
[1741971464310,10.50358,1940.8,1940.5,5.15317]
[1741971464311,5.351,1940.8,1940.5,5.15317]
[1741971464631,5.15293,1940.7,1940.3,5.15366]
[1741971464802,5.15342,1940.5,1940.1,11.14434]
[1741971465003,0.7615,1940.4,1940.0,5.95038]
[1741971465203,5.91526,1940.4,1940.0,5.95038]
[1741971465638,5.1542,1940.2,1939.9,5.99]
[1741971465820,5.1542,1940.2,1939.8,5.95012]
[1741971466725,5.15441,1940.1,1939.8,5.15502]
[1741971467033,0.8007,1940.1,1939.8,5.15507]
[1741971467236,5.9551,1940.1,1939.7,5.15534]
[1741971467539,5.15467,1940.0,1939.7,5.15534]
[1741971467736,11.7052,1940.1,1939.7,5.15534]
[1741971467936,6.55061,1940.1,1939.7,5.15525]
[1741971468614,6.55061,1940.1,1939.7,10.31052]
[1741971469007,6.55061,1940.1,1939.7,5.15525]
[1741971469207,1.39621,1940.1,1939.8,5.15498]
[1741971469420,0.8007,1940.1,1939.8,5.15498]
[1741971469706,5.95508,1940.1,1939.8,5.15498]
[1741971470104,0.8007,1940.1,1939.8,10.31001]
[1741971470310,6.1101,1940.3,1940.0,5.15458]
[1741971470533,6.1101,1940.3,1939.9,5.15484]
[1741971470534,7.3471687,1940.3,1939.9,5.15484]
[1741971470706,11.26411,1940.3,1939.9,5.15484]
[1741971470917,16.41812,1940.3,1939.9,5.15484]
[1741971471122,11.26411,1940.3,1939.9,5.15484]
[1741971471329,11.26411,1940.3,1939.9,10.3096]
[1741971471538,11.26411,1940.3,1939.9,5.15476]
[1741971471738,11.26411,1940.3,1939.9,10.30955]
[1741971472121,6.1101,1940.3,1940.0,5.1545]
[1741971472506,11.26408,1940.3,1939.9,5.15476]
[1741971473039,12.905846,1940.3,1939.9,5.15476]
[1741971473341,6.1101,1940.3,1940.0,5.15451]
[1741971473553,11.26403,1940.3,1940.0,5.15451]
[1741971473758,11.26403,1940.3,1939.9,5.15486]
[1741971473920,6.1101,1940.3,1939.7,11.14538]
[1741971474122,5.95012,1940.5,1940.1,5.15428]
[1741971474433,5.351,1940.4,1940.1,5.15428]
[1741971474635,5.351,1940.4,1940.2,5.15398]
[1741971475538,5.351,1940.4,1940.2,5.15392]
[1741971475726,6.1478,1940.5,1940.3,5.15363]
[1741971477145,11.30116,1940.5,1940.2,5.15409]
[1741971477315,12.946582,1940.5,1940.2,5.15409]
[1741971478447,7.793222,1940.5,1940.2,5.15396]
[1741971478845,12.946572,1940.5,1940.2,5.15396]
[1741971479342,7.793222,1940.5,1940.2,10.30794]
[1741971479515,7.793222,1940.5,1940.2,5.15396]
[1741971479717,7.793222,1940.5,1940.3,5.15381]
[1741971480547,7.793222,1940.5,1940.2,5.15396]
[1741971480918,12.946582,1940.5,1940.2,5.15396]
[1741971481344,12.946582,1940.5,1940.1,5.15432]
[1741971481549,12.946582,1940.5,1940.1,10.3086]
[1741971481746,18.100112,1940.5,1940.1,5.15426]
[1741971482065,7.793222,1940.5,1940.2,5.154]
[1741971482265,7.793222,1940.5,1940.3,5.15373]
[1741971482547,0.8288,1940.9,1940.6,5.15304]
[1741971482714,5.35,1940.8,1940.7,5.15273]
[1741971483121,5.35,1940.8,1940.6,5.15304]
[1741971483513,5.35,1940.8,1940.6,10.30593]
[1741971483717,5.35,1940.8,1940.6,5.15289]
[1741971484250,5.35,1940.8,1940.3,11.14363]
[1741971484251,11.0376,1940.8,1940.4,5.15357]
[1741971484454,11.03776,1940.8,1940.5,5.15321]
[1741971484753,5.885,1940.8,1940.5,5.15321]
[1741971484915,5.885,1940.8,1940.5,10.30631]
[1741971485115,5.885,1940.8,1940.5,5.15315]
[1741971485653,11.03756,1940.8,1940.5,5.15315]
[1741971486249,1.103756,1940.7,1940.5,5.15315]
[1741971487748,1.103756,1940.7,1940.4,5.15357]
[1741971487949,5.97484,1940.6,1940.2,11.14402]
[1741971488139,5.1539,1940.3,1940.0,5.99]
[1741971488457,11.08052,1940.3,1940.0,5.99]
[1741971488752,6.262322,1940.2,1940.0,5.99]
[1741971488923,5.15437,1940.1,1939.8,5.15509]
[1741971489852,5.15437,1940.1,1939.7,5.1553]
[1741971490061,6.262182,1940.2,1939.8,5.15514]
[1741971490258,5.15413,1940.2,1939.8,5.15502]
[1741971490452,5.15413,1940.2,1939.9,5.15488]
[1741971490657,5.15413,1940.2,1939.8,5.15502]
[1741971491054,5.92645,1940.3,1940.0,5.15461]
[1741971491055,0.7726,1940.3,1940.0,5.15461]
[1741971491243,5.92646,1940.3,1940.0,5.15461]
[1741971491448,7.034466,1940.3,1939.9,5.91568]
[1741971491649,5.92646,1940.3,1939.9,5.91568]
[1741971492172,0.7726,1940.3,1940.0,5.15453]
[1741971492529,5.92648,1940.3,1939.9,11.07043]
[1741971492729,5.92648,1940.3,1939.9,5.91565]
[1741971492930,5.92648,1940.3,1939.9,11.07038]
[1741971493360,5.92648,1940.3,1940.0,5.15459]
[1741971493564,0.7726,1940.3,1940.0,5.15459]
[1741971493749,5.92656,1940.3,1940.0,5.15459]
[1741971493942,0.7726,1940.3,1940.0,5.15448]
[1741971494350,0.7726,1940.3,1940.0,10.30897]
[1741971494554,0.7726,1940.3,1940.0,5.15448]
[1741971494755,5.92645,1940.3,1940.0,5.15448]
[1741971496159,5.92645,1940.3,1939.9,11.07057]
[1741971496369,7.334452,1940.3,1939.9,11.07046]
[1741971496665,7.334452,1940.3,1939.9,5.15477]
[1741971496834,7.334452,1940.3,1939.9,10.30954]
[1741971497034,7.334452,1940.3,1939.9,5.15475]
[1741971497465,7.334452,1940.3,1939.9,5.15485]
[1741971497466,5.15424,1940.2,1939.9,5.15485]
[1741971497668,7.334522,1940.3,1939.9,5.15485]
[1741971497964,5.92652,1940.3,1940.0,5.15461]
[1741971498138,5.92652,1940.3,1939.9,5.15476]
[1741971498670,5.1542,1940.2,1939.8,5.15494]
[1741971498838,5.15438,1940.1,1939.8,5.15494]
[1741971499037,5.1542,1940.2,1939.8,10.30996]
[1741971499247,5.1542,1940.2,1939.9,5.15488]
[1741971500966,5.1542,1940.2,1939.8,10.30996]
[1741971501264,5.1542,1940.2,1939.8,5.15494]
[1741971501473,5.1542,1940.2,1939.8,10.30997]
[1741971501671,10.30851,1940.2,1939.8,5.15494]
[1741971501981,6.262311,1940.2,1939.8,10.30998]
[1741971502376,6.262231,1940.2,1939.9,5.15483]
[1741971502875,11.416531,1940.2,1939.8,5.15515]
[1741971503170,5.15441,1940.1,1939.8,5.15515]
[1741971503371,5.347,1940.0,1939.7,10.31054]
[1741971505774,5.347,1940.0,1939.8,5.15508]
[1741971505975,0.7726,1940.3,1940.2,5.1541]
[1741971506143,8.985,1940.5,1940.1,5.15436]
[1741971506345,8.985,1940.5,1940.0,0.05154125]
[1741971506346,0.8316,1940.5,1940.0,0.05154125]
[1741971506549,32.43720674,1941.0,1940.4,5.15356]
[1741971506550,0.8316,1940.7,1940.4,5.15356]
[1741971506762,5.347,1940.6,1940.4,5.15344]
[1741971507057,5.346,1940.6,1940.4,10.30685]
[1741971507265,5.346,1940.6,1940.5,5.15331]
[1741971507466,5.346,1940.6,1940.4,5.15341]
[1741971507784,5.346,1940.6,1940.5,5.15331]
[1741971507955,0.764,1941.3,1940.8,5.15226]
[1741971508158,10.49746,1941.2,1940.8,5.15235]
[1741971508358,3.0,1941.1,1940.8,5.15235]
[1741971508556,3.0,1941.1,1940.8,10.30468]
[1741971508746,5.91525,1941.3,1940.9,5.15205]
[1741971508947,5.937525,1941.2,1941.0,5.1519]
[1741971509177,5.15065,1941.5,1941.1,5.15171]
[1741971509380,5.346,1941.3,1941.2,5.15145]
[1741971509679,5.346,1941.4,1941.2,5.15145]
[1741971510666,5.346,1941.4,1941.0,5.92297]
[1741971510877,0.5346,1941.3,1941.0,5.92286]
[1741971511776,0.5346,1941.3,1941.0,5.15186]
[1741971512885,5.346,1941.4,1941.0,5.15179]
[1741971513071,5.346,1941.4,1941.1,5.15152]
[1741971513385,8.344,1941.5,1941.2,5.15123]
[1741971513545,8.344,1941.5,1941.1,5.15167]
[1741971513750,13.49489,1941.5,1941.1,5.15167]
[1741971514055,1.349489,1941.4,1941.2,5.15142]
[1741971514281,8.344,1941.5,1941.2,5.15142]
[1741971514467,13.49466,1941.5,1941.2,5.15142]
[1741971515887,8.344,1941.5,1941.2,5.15142]
[1741971516061,13.49468,1941.5,1941.1,5.15164]
[1741971516260,5.15156,1941.2,1940.8,0.8012]
[1741971516573,0.590576,1941.2,1940.9,5.15221]
[1741971516761,5.90562,1941.3,1940.8,0.85271691]
[1741971516762,14.24903,1941.5,1941.1,5.15161]
[1741971517172,5.343,1941.4,1941.1,5.1516]
[1741971517781,5.343,1941.4,1941.1,10.30315]
[1741971518193,5.343,1941.4,1941.2,5.15141]
[1741971518798,10.49395,1941.4,1941.1,5.15166]
[1741971519092,12.433848,1941.4,1941.0,5.15196]
[1741971519257,12.433848,1941.4,1940.9,5.1522]
[1741971519458,0.778,1941.1,1940.0,6.7932]
[1741971519660,0.778,1940.5,1940.0,11.94776]
[1741971519886,10.49575,1940.4,1940.0,1.27397447]
[1741971520188,10.49575,1940.4,1940.0,10.30907]
[1741971520395,10.4957,1940.4,1940.0,5.15448]
[1741971520860,15.64947,1940.4,1940.0,5.15448]
[1741971521358,10.30789,1940.3,1939.9,5.15489]
[1741971521683,5.15385,1940.3,1939.9,5.15489]
[1741971522571,5.15385,1940.3,1939.9,5.9333053]
[1741971523486,10.30792,1940.3,1939.9,5.15489]
[1741971523776,5.342,1940.4,1939.8,11.95063775]
[1741971523777,5.342,1940.4,1939.8,6.79546775]
[1741971523982,5.342,1940.4,1940.1,5.15436]
[1741971525691,5.342,1940.4,1940.2,5.15409]
[1741971525985,5.15285,1940.7,1940.3,5.15365]
[1741971526287,5.342,1940.5,1940.3,5.15365]
[1741971526591,5.342,1940.5,1940.2,5.15403]
[1741971526788,5.15308,1940.6,1940.2,5.15403]
[1741971527088,5.342,1940.5,1940.2,5.15403]
[1741971527256,5.342,1940.5,1940.2,10.30796]
[1741971527679,5.15308,1940.6,1940.3,5.15379]
[1741971527888,0.8218,1940.7,1940.6,5.15304]
[1741971528081,0.8218,1940.7,1940.4,5.15357]
[1741971528082,6.1638,1940.7,1940.5,5.15321]
[1741971528277,8.15231,1940.9,1940.4,0.05153302]
[1741971528278,0.8216,1940.9,1940.4,0.05153302]
[1741971528462,5.342,1940.7,1940.6,5.15304]
[1741971528863,5.342,1940.7,1940.6,6.183675]
[1741971530290,0.8216,1940.9,1940.6,6.183675]
[1741971530473,5.342,1941.0,1940.8,5.1524]
[1741971530787,5.342,1941.0,1940.7,5.15254]
[1741971531190,5.342,1941.0,1940.6,6.183645]
[1741971531191,5.342,1941.0,1940.6,1.030635]
[1741971531383,5.342,1941.0,1940.8,5.15239]
[1741971531583,5.342,1941.0,1940.8,5.15237]
[1741971534292,5.342,1941.0,1940.8,5.15235]
[1741971534497,3.8206,1941.1,1940.8,5.15235]
[1741971534695,5.34,1941.0,1940.9,5.15219]
[1741971534998,5.34,1941.1,1940.9,5.8279652]
[1741971535196,5.34,1941.1,1940.9,10.3043]
[1741971535397,5.34,1941.1,1940.9,5.15214]
[1741971538701,5.94668,1941.0,1940.7,5.15271]
[1741971539097,0.7947,1941.0,1940.7,10.3054]
[1741971539292,0.7947,1941.0,1940.8,5.15247]
[1741971539475,10.49172,1941.1,1940.8,5.15247]
[1741971539674,6.768642,1941.1,1940.8,5.1524]
[1741971539876,5.34,1941.1,1940.8,5.1524]
[1741971540387,10.49179,1941.1,1940.8,5.1524]
[1741971540706,4.91818674,1940.9,1940.5,0.7816]
[1741971540882,4.91818674,1940.9,1940.3,0.7733]
[1741971541094,5.15252,1940.8,1940.4,5.15341]
[1741971541292,6.67482967,1940.8,1940.4,5.15341]
[1741971541797,5.1528,1940.7,1940.4,5.15341]
[1741971542193,6.67482967,1940.8,1940.3,5.92713]
[1741971542393,5.15288,1940.7,1940.3,5.15383]
[1741971542717,5.94189,1940.6,1940.2,5.15396]
[1741971542917,0.594189,1940.5,1940.1,0.8186]
[1741971543106,6.1277,1940.6,1940.3,5.15375]
[1741971543294,6.1277,1940.6,1940.4,5.15351]
[1741971543487,5.339,1940.6,1940.5,5.15331]
[1741971543692,5.339,1940.6,1940.4,5.15354]
[1741971544415,5.339,1940.6,1940.3,5.15381]
[1741971544588,5.339,1940.6,1940.3,10.30752]
[1741971544780,5.339,1940.6,1940.2,5.15401]
[1741971544781,10.49214,1940.6,1940.2,5.15401]
[1741971544979,6.79563558,1940.6,1940.2,5.15394]
[1741971545297,11.94876558,1940.6,1940.3,5.15373]
[1741971545693,6.79563558,1940.6,1940.3,10.30748]
[1741971545892,5.339,1940.6,1940.4,5.15356]
[1741971546814,5.339,1940.6,1940.3,5.1537]
[1741971547513,5.339,1940.6,1940.4,5.15357]
[1741971549000,5.339,1940.6,1940.2,5.1541]
[1741971549206,0.7825,1940.4,1940.1,5.15418]
[1741971550129,0.7825,1940.4,1940.2,5.15399]
[1741971551624,6.147,1940.6,1940.3,5.15372]
[1741971551801,7.276982,1940.6,1940.3,5.15372]
[1741971552198,0.55,1940.7,1940.5,5.15331]
[1741971552399,5.338,1940.6,1940.3,10.30727]
[1741971552927,5.338,1940.6,1940.4,5.15352]
[1741971553130,5.338,1940.6,1940.3,5.15362]
[1741971554002,5.338,1940.6,1940.4,5.15347]
[1741971555101,5.338,1940.6,1940.3,5.15362]
[1741971555414,6.38709,1940.6,1940.3,10.30733]
[1741971555616,5.338,1940.6,1940.3,10.30733]
[1741971556223,5.338,1940.6,1940.3,5.15362]
[1741971556825,10.49113,1940.6,1940.2,5.1541]
[1741971557130,10.49113,1940.6,1940.2,5.15397]
[1741971557328,10.49113,1940.6,1940.2,10.30792]
[1741971558031,12.055533,1940.6,1940.2,5.15395]
[1741971558227,17.208733,1940.6,1940.2,5.15395]
[1741971558431,5.90503,1940.5,1940.2,5.15395]
[1741971558632,0.7517,1940.5,1940.2,5.15394]
[1741971558940,0.7517,1940.5,1940.3,5.15382]
[1741971559113,0.7517,1940.5,1940.2,5.15394]
[1741971559504,0.7517,1940.5,1940.3,5.15382]
[1741971560033,0.55,1940.5,1940.3,5.15382]
[1741971560229,5.338,1940.6,1940.4,5.15334]
[1741971561733,5.338,1940.6,1940.3,5.15376]
[1741971562233,5.338,1940.6,1940.4,5.15348]
[1741971562532,0.7797,1940.9,1940.4,1.88236625]
[1741971562832,11.25127,1941.3,1940.7,10.30511]
[1741971563032,0.7797,1941.1,1940.9,5.15222]
[1741971563248,5.336,1941.0,1940.9,5.15222]
[1741971563408,5.336,1941.0,1940.8,5.15246]
[1741971563608,5.336,1941.0,1940.8,5.15239]
[1741971564322,5.336,1941.0,1940.7,5.95285]
[1741971564548,5.336,1941.0,1940.7,5.15266]
[1741971565606,5.336,1941.0,1940.7,10.3053]
[1741971565925,5.336,1941.0,1940.8,5.15238]
[1741971566110,5.336,1941.0,1940.8,10.30477]
[1741971566304,5.336,1941.0,1940.9,5.15224]
[1741971566616,5.336,1941.0,1940.8,5.15238]
[1741971566937,5.336,1941.0,1940.7,5.1527]
[1741971567143,4.68418674,1940.9,1940.4,5.15348]
[1741971567435,5.90581,1940.8,1940.4,5.1534]
[1741971568131,5.15286,1940.7,1940.3,10.30744]
[1741971568338,8.90577,1940.8,1940.4,5.15348]
[1741971568740,5.15282,1940.7,1940.4,5.15348]
[1741971568940,6.558679,1940.7,1940.4,5.15348]
[1741971569118,1.405859,1940.7,1940.4,10.30691]
[1741971569318,8.90577,1940.8,1940.4,5.15343]
[1741971570208,14.05846,1940.8,1940.4,5.15343]
[1741971570943,5.15278,1940.7,1940.4,5.15343]
[1741971573816,10.48678,1940.7,1940.4,5.15343]
[1741971574257,5.334,1940.7,1940.4,5.15343]
[1741971575656,5.334,1940.7,1940.4,10.30683]
[1741971575820,5.334,1940.7,1940.5,5.15316]
[1741971576021,0.8065,1941.1,1940.6,0.8134]
[1741971576226,5.333,1941.0,1940.8,5.15231]
[1741971577266,0.8065,1941.1,1940.9,5.15224]
[1741971577443,17.048,1941.5,1941.1,5.15158]
[1741971577444,6.1279,1941.3,1941.1,5.15158]
[1741971577946,5.95228,1941.5,1941.1,10.30312]
[1741971578135,5.333,1941.4,1941.1,5.15154]
[1741971578461,5.332,1941.4,1941.2,5.15126]
[1741971578956,4.911769,1941.5,1941.2,5.15126]
[1741971579257,10.243769,1941.5,1941.2,5.15126]
[1741971579759,4.911769,1941.5,1941.2,5.15126]
[1741971579938,10.243769,1941.5,1941.2,5.15126]
[1741971580153,10.243769,1941.5,1941.2,10.30256]
[1741971580337,9.1335,1941.5,1941.2,5.15126]
[1741971580641,8.332,1941.5,1941.3,5.15105]
[1741971581426,8.332,1941.5,1941.2,5.15141]
[1741971581630,8.332,1941.5,1941.2,5.15126]
[1741971581832,13.48271,1941.5,1941.1,5.1517]
[1741971582031,0.8292,1941.4,1941.0,5.15192]
[1741971582233,5.9802,1941.4,1941.0,5.15178]
[1741971582635,6.1602,1941.4,1941.1,5.15168]
[1741971582836,6.1602,1941.4,1941.0,5.15178]
[1741971583058,11.31124,1941.4,1941.0,5.15178]
[1741971583259,6.282394,1941.3,1940.9,10.30438]
[1741971583936,11.433764,1941.3,1940.9,5.15216]
[1741971584137,6.282394,1941.3,1940.9,10.30422]
[1741971585367,1.131124,1941.3,1941.0,5.15195]
[1741971585660,3.0,1941.4,1941.2,5.15134]
[1741971585961,8.33,1941.4,1941.2,10.30263]
[1741971586170,8.33,1941.4,1941.2,5.96418]
[1741971586333,5.33,1941.4,1941.3,5.15118]
[1741971587167,5.33,1941.4,1941.2,11.11548]
[1741971587561,5.33,1941.4,1941.3,5.15118]
[1741971588356,3.0,1941.7,1941.3,1.111536]
[1741971588559,8.329,1941.7,1941.4,5.15078]
[1741971588760,5.91289,1941.8,1941.4,5.15078]
[1741971588964,11.24189,1941.8,1941.4,5.15078]
[1741971589136,11.24189,1941.8,1941.5,5.15061]
[1741971589341,11.24189,1941.8,1941.5,10.30108]
[1741971589342,3.763,1941.8,1941.5,10.30108]
[1741971589569,8.329,1941.8,1941.5,10.30108]
[1741971589869,8.329,1941.8,1941.5,5.15047]
[1741971590476,8.329,1941.8,1941.6,5.15038]
[1741971590766,8.329,1941.8,1941.4,5.15085]
[1741971590966,8.329,1941.8,1941.5,5.15065]
[1741971591171,13.479,1941.8,1941.4,5.15085]
[1741971591355,0.8143,1941.7,1941.4,5.15085]
[1741971591563,0.8143,1941.7,1941.5,5.15059]
[1741971591757,14.2933,1941.8,1941.5,5.15059]
[1741971592645,14.2933,1941.8,1941.4,5.15078]
[1741971592842,14.2933,1941.8,1941.4,5.15073]
[1741971593046,14.2933,1941.8,1941.4,10.30154]
[1741971593270,14.2933,1941.8,1941.4,5.15073]
[1741971593871,14.2933,1941.8,1941.4,10.30147]
[1741971594076,14.2933,1941.8,1941.4,5.15073]
[1741971594300,5.15015,1941.7,1941.4,5.15073]
[1741971594442,14.2933,1941.8,1941.4,5.15073]
[1741971595179,14.2933,1941.8,1941.4,10.30154]
[1741971595381,14.2933,1941.8,1941.5,5.15062]
[1741971595672,9.1433,1941.8,1941.5,5.15062]
[1741971595855,14.29316,1941.8,1941.5,5.15062]
[1741971596676,14.29316,1941.8,1941.4,5.15073]
[1741971596973,15.777476,1941.8,1941.4,5.15073]
[1741971597177,15.777476,1941.8,1941.4,10.30149]
[1741971597343,5.15015,1941.7,1941.4,5.15073]
[1741971597749,5.15015,1941.7,1941.3,10.30218]
[1741971598047,5.15015,1941.7,1941.4,5.1509]
[1741971598876,11.927666,1941.8,1941.4,5.1509]
[1741971599246,5.15022,1941.7,1941.4,5.1509]
[1741971599464,4.59945655,1941.6,1941.2,6.035]
[1741971599664,5.15076,1941.5,1941.2,6.035]
[1741971600210,0.55,1941.4,1941.2,0.045]
[1741971600481,5.15314,1940.6,1940.3,0.7565]
[1741971600774,0.7976,1941.0,1940.3,5.15372]
[1741971600775,1.3476,1940.7,1940.3,5.15372]
[1741971601076,5.326,1941.0,1940.8,5.1524]
[1741971601373,5.326,1941.0,1940.6,0.8005]
[1741971601575,5.326,1941.0,1940.7,5.15256]
[1741971601880,5.326,1941.0,1940.7,5.15251]
[1741971602177,5.326,1941.0,1940.6,5.95347]
[1741971602360,10.47818,1941.0,1940.6,1.911151]
[1741971602671,10.47818,1941.0,1940.6,5.95348]
[1741971603077,5.15252,1940.8,1940.4,7.304272]
[1741971603246,5.15305,1940.6,1940.2,5.95298]
[1741971603452,5.15323,1940.6,1940.2,5.95296]
[1741971603684,10.30651,1940.6,1940.2,5.15406]
[1741971603842,11.0762,1940.5,1940.1,11.14436]
[1741971604052,16.4022,1940.5,1940.1,5.15436]
[1741971604383,10.30755,1940.4,1940.0,5.95347]
[1741971604580,5.15372,1940.4,1940.0,7.663204]
[1741971605680,6.0953,1940.5,1940.1,5.15437]
[1741971605847,5.326,1940.5,1940.1,5.15413]
[1741971606450,10.47946,1940.5,1940.1,5.15413]
[1741971606846,5.326,1940.5,1940.2,5.15407]
[1741971607050,5.326,1940.5,1940.3,0.515407]
[1741971607477,5.94313,1940.7,1940.3,0.515407]
[1741971607478,0.7903,1940.7,1940.3,5.669097]
[1741971607779,3.7596,1940.9,1940.5,10.30643]
[1741971608079,7.11056538,1941.3,1941.0,5.15188]
[1741971608278,10.47719,1941.3,1940.9,5.15217]
[1741971608577,5.326,1941.3,1941.0,5.97869595]
[1741971608785,5.326,1941.3,1941.1,5.15171]
[1741971608955,5.326,1941.3,1941.1,5.15161]
[1741971609351,5.326,1941.3,1941.1,10.30313]
[1741971609580,5.326,1941.3,1941.1,5.15152]
[1741971609780,5.326,1941.3,1941.1,5.744192]
[1741971610097,5.326,1941.3,1941.2,5.15145]
[1741971610253,5.326,1941.6,1941.3,5.15097]
[1741971610454,5.326,1941.6,1941.3,10.30199]
[1741971610680,5.15013,1941.7,1941.3,5.15097]
[1741971610882,5.15013,1941.7,1941.3,6.18121]
[1741971611277,0.55,1941.6,1941.1,5.99]
[1741971611510,0.55,1941.6,1941.0,0.7752]
[1741971611511,5.15157,1941.2,1940.8,5.93617]
[1741971611790,5.15157,1941.2,1940.8,11.08851]
[1741971611987,10.30327,1941.2,1940.8,5.93617]
[1741971612171,5.15173,1941.1,1940.7,11.14274]
[1741971612366,5.98288,1941.0,1940.5,5.15319]
[1741971612581,5.98288,1941.0,1940.4,5.96249849]
[1741971612582,5.15235,1940.9,1940.4,5.96249849]
[1741971612765,5.15235,1940.9,1940.5,5.15329]
[1741971613286,5.98289,1941.0,1940.6,5.15288]
[1741971613482,5.325,1941.2,1940.4,4.04778296]
[1741971613688,4.02207347,1941.5,1941.1,5.15171]
[1741971613882,6.34707347,1941.5,1941.2,10.30271]
[1741971614199,5.325,1941.5,1941.2,10.30271]
[1741971614696,5.325,1941.5,1941.2,5.15133]
[1741971615224,10.47573,1941.5,1941.1,5.15167]
[1741971615565,5.325,1941.5,1941.4,5.15092]
[1741971615764,5.325,1941.5,1941.3,5.15117]
[1741971615966,0.7754,1941.6,1941.4,5.15092]
[1741971616178,5.324,1941.6,1941.4,5.15092]
[1741971616390,6.5815575,1941.8,1941.4,5.15092]
[1741971616573,5.93731,1941.9,1941.4,5.97565]
[1741971616799,5.324,1941.8,1941.5,5.15045]
[1741971617305,16.41118,1941.9,1941.5,5.15045]
[1741971617672,5.1503,1941.7,1941.4,0.8249]
[1741971617882,5.1503,1941.7,1941.3,5.15107]
[1741971618089,5.15094,1941.4,1941.2,5.99]
[1741971618398,5.15094,1941.4,1941.0,5.94647]
[1741971618605,5.15168,1941.2,1940.7,5.15275]
[1741971618901,5.15168,1941.2,1940.8,5.1524]
[1741971618902,5.15157,1941.2,1940.8,5.1524]
[1741971619199,5.15198,1941.0,1940.5,5.15328]
[1741971619409,5.15252,1940.8,1940.5,5.15328]
[1741971619574,10.47552,1940.8,1940.4,5.92554]
[1741971619770,5.323,1940.8,1940.4,5.92539]
[1741971619982,5.323,1940.8,1940.6,5.15303]
[1741971620185,5.323,1940.8,1940.7,5.15277]
[1741971620400,5.323,1940.8,1940.6,5.15299]
[1741971620703,5.323,1940.8,1940.6,6.183617]
[1741971620903,5.323,1940.8,1940.6,5.15299]
[1741971621582,0.55,1941.0,1940.6,10.30584]
[1741971621782,5.324,1940.9,1940.6,5.15285]
[1741971622767,10.47643,1940.9,1940.5,5.15329]
[1741971622972,15.62888,1940.9,1940.5,5.15311]
[1741971623167,12.039318,1940.9,1940.5,5.15311]
[1741971623799,12.039318,1940.9,1940.5,10.30629]
[1741971624105,12.039318,1940.9,1940.6,5.15302]
[1741971624284,12.039188,1940.9,1940.5,10.30628]
[1741971624601,10.4763,1940.9,1940.5,10.30628]
[1741971625303,5.324,1940.9,1940.6,5.15302]
[1741971625597,5.324,1940.9,1940.6,5.15286]
[1741971625904,10.47626,1940.9,1940.6,5.15286]
[1741971628114,0.8313,1941.1,1940.6,5.15286]
[1741971628115,0.8313,1941.1,1940.6,0.05152771]
[1741971628422,8.92861,1941.3,1940.9,5.15214]
[1741971628585,12.16161,1941.3,1940.9,5.15207]
[1741971629189,5.15147,1941.2,1940.9,5.15207]
[1741971629398,0.55,1941.2,1940.7,5.15274]
[1741971629598,5.15185,1941.1,1940.7,10.30541]
[1741971629799,5.15185,1941.1,1940.7,5.15267]
[1741971630288,5.15185,1941.1,1940.7,6.183237]
[1741971630428,5.15185,1941.1,1940.7,6.183177]
[1741971630729,5.15234,1940.9,1940.5,11.14327]
[1741971630929,5.15234,1940.9,1940.5,5.15327]
[1741971631117,10.30478,1940.9,1940.5,5.15327]
[1741971631322,0.8104,1941.0,1940.5,5.15329]
[1741971631514,5.15255,1940.8,1940.4,5.15356]
[1741971631703,5.15255,1940.8,1940.4,5.745356]
[1741971631898,10.30523,1940.8,1940.4,5.745356]
[1741971632097,5.15255,1940.8,1940.4,10.898746]
[1741971632405,5.15255,1940.8,1940.4,5.745286]
[1741971632601,10.30588,1940.7,1940.3,5.91917]
[1741971632807,5.9273,1940.7,1940.3,10.30745]
[1741971633230,11.08025,1940.7,1940.3,5.15368]
[1741971633398,11.08025,1940.7,1940.3,10.30738]
[1741971633399,5.9273,1940.7,1940.3,10.30738]
[1741971633599,0.7744,1940.7,1940.3,0.05153131]
[1741971633907,10.47456,1940.8,1940.5,5.15313]
[1741971634109,5.322,1940.8,1940.5,5.15313]
[1741971634431,10.4746,1940.8,1940.5,5.15328]
[1741971634901,5.322,1940.8,1940.5,10.30645]